bitfinex/quotes_ETHUSD_20251201
["timestamp","ask_amount","ask_price","bid_price","bid_amount"]
[1764614748424,0.002,2732.7,2732.4,7.31957252]
[1764614748790,0.002,2732.7,2732.1,4.38567186]
[1764614748994,0.36580911,2732.7,2732.3,0.72559411]
[1764614750611,0.36580911,2732.7,2732.3,8.04539513]
[1764614752322,0.002,2732.7,2732.3,8.04539513]
[1764614753523,0.002,2732.7,2732.3,4.38547492]
[1764614753728,0.002,2732.7,2732.3,3.65988081]
[1764614754524,0.002,2732.7,2732.0,0.72559411]
[1764614754731,0.36380911,2732.4,2731.9,0.001]
[1764614754913,0.36380911,2732.4,2731.9,3.66144109]
[1764614756593,0.002,2732.7,2731.9,0.001]
[1764614756594,0.36580911,2732.7,2731.9,0.001]
[1764614756799,4.0252162,2732.7,2731.9,9.52374136]
[1764614757013,3.66140709,2732.7,2731.9,0.001]
[1764614758308,7.32081418,2732.7,2731.9,0.001]
[1764614758506,0.73208142,2732.6,2731.9,0.001]
[1764614758823,0.73208142,2732.6,2731.9,3.66145609]
[1764614758824,4.39162875,2732.6,2731.9,3.66145609]
[1764614759034,4.39162875,2732.6,2731.9,7.32191218]
[1764614760000,4.39162875,2732.6,2731.9,3.66145609]
[1764614760421,4.39162875,2732.6,2731.9,7.32191218]
[1764614760623,4.39162875,2732.6,2731.9,0.001]
[1764614761900,4.39161551,2732.6,2731.9,0.001]
[1764614762106,0.47574246,2732.5,2731.9,0.001]
[1764614762338,0.36380911,2732.3,2731.9,0.001]
[1764614762505,0.47574246,2732.5,2731.9,0.001]
[1764614762707,0.36380911,2732.0,2731.9,0.001]
[1764614763015,4.02413121,2732.0,2731.9,0.001]
[1764614763218,4.42875436,2732.0,2731.9,0.001]
[1764614763413,4.79256347,2732.0,2731.9,0.001]
[1764614763640,9.13856247,2732.0,2731.9,0.001]
[1764614767013,25.97499347,2732.0,2731.9,0.001]
[1764614768035,8.61644747,2732.0,2731.9,0.001]
[1764614768242,7.07947636,2732.0,2731.9,0.001]
[1764614768536,7.44328547,2732.0,2731.9,0.001]
[1764614769044,19.14878847,2732.0,2731.9,0.001]
[1764614769238,12.95618847,2732.0,2731.9,0.001]
[1764614769441,10.58983847,2732.0,2731.9,0.001]
[1764614770018,12.54111447,2732.0,2731.9,0.001]
[1764614770343,4.79256347,2732.0,2731.9,0.001]
[1764614771045,9.97886447,2732.0,2731.9,0.001]
[1764614771234,10.55147147,2732.0,2731.9,0.001]
[1764614772242,4.79256347,2732.0,2731.9,0.001]
[1764614772442,17.97749747,2732.0,2731.9,0.001]
[1764614772647,4.79256347,2732.0,2731.9,0.001]
[1764614772948,12.14558247,2732.0,2731.9,0.001]
[1764614773320,13.37316447,2732.0,2731.9,0.001]
[1764614773847,4.02413121,2732.0,2731.9,0.001]
[1764614774046,0.47574246,2732.5,2731.9,0.001]
[1764614774244,0.36380911,2732.0,2731.9,0.001]
[1764614774824,0.36580911,2732.0,2731.9,0.001]
[1764614775442,0.002,2732.0,2731.9,0.001]
[1764614776118,0.36580911,2732.0,2731.9,0.001]
[1764614777353,4.02613121,2732.0,2731.9,0.001]
[1764614777523,0.36580911,2732.0,2731.9,0.001]
[1764614778132,4.02613121,2732.0,2731.9,0.001]
[1764614778338,3.6623221,2732.0,2731.9,0.001]
[1764614778631,4.02613121,2732.0,2731.9,0.001]
[1764614781529,0.002,2732.0,2731.9,0.001]
[1764614784263,0.002,2732.0,2731.9,0.72659411]
[1764614784427,0.002,2732.0,2731.9,1.08948965]
[1764614784923,0.002,2732.0,2731.9,0.72659411]
[1764614785522,0.002,2732.0,2731.9,4.3870502]
[1764614785727,0.002,2732.3,2732.0,0.405504]
[1764614786060,0.002,2732.7,2732.6,0.76839954]
[1764614786251,0.002,2732.7,2732.6,1.35339954]
[1764614787360,0.002,2732.9,2732.6,1.35339954]
[1764614787361,0.002,2732.9,2732.8,0.76839954]
[1764614787563,0.002,2732.9,2732.8,5.15324423]
[1764614787780,0.002,2732.9,2732.8,5.33274023]
[1764614788060,0.002,2732.9,2732.8,5.73824423]
[1764614789843,0.002,2733.0,2732.9,1.49399365]
[1764614791261,0.002,2734.8,2733.1,0.36289554]
[1764614791872,0.002,2734.8,2733.1,4.74733857]
[1764614792366,0.002,2734.8,2733.1,5.15284257]
[1764614793730,0.002,2733.5,2733.2,1.13109811]
[1764614793948,0.002,2733.5,2733.2,11.1580113]
[1764614794334,0.002,2733.5,2733.2,11.7430113]
[1764614794852,0.002,2733.5,2733.2,10.79511576]
[1764614795164,0.002,2733.5,2733.2,11.38011576]
[1764614795536,0.002,2733.5,2733.2,15.03883081]
[1764614796139,0.002,2733.5,2733.2,15.40172635]
[1764614798061,0.002,2733.5,2733.4,0.76839954]
[1764614799033,0.002,2733.5,2733.4,1.49399365]
[1764614799237,0.002,2733.8,2733.5,1.13109811]
[1764614799466,0.002,2733.8,2733.5,1.49399365]
[1764614799638,0.002,2733.8,2733.7,10.43241719]
[1764614799840,0.002,2733.8,2733.7,14.09046306]
[1764614801142,0.002,2734.8,2733.7,29.44824065]
[1764614801343,0.002,2734.8,2734.4,1.08848965]
[1764614801538,0.002,2734.8,2734.4,1.31059411]
[1764614802071,0.002,2734.8,2733.9,3.65777826]
[1764614802258,0.002,2734.8,2734.0,0.72559411]
[1764614803575,0.002,2734.8,2734.1,3.65751069]
[1764614803774,0.002,2734.8,2734.3,9.76380872]
[1764614803968,0.002,2734.8,2734.4,1.08848965]
[1764614804161,0.002,2734.8,2734.4,0.72559411]
[1764614804366,0.002,2734.8,2734.4,1.67348965]
[1764614804878,0.002,2734.8,2734.4,1.91568025]
[1764614805575,0.002,2734.8,2734.5,0.405504]
[1764614805779,0.0009,2735.7,2734.5,0.405504]
[1764614805965,10.61018224,2736.4,2734.9,1.23088918]
[1764614806168,0.36380911,2735.9,2735.0,0.585]
[1764614806371,1.06101822,2736.3,2734.9,0.72559411]
[1764614806547,0.36380911,2735.6,2734.9,0.72559411]
[1764614806752,0.0997041,2735.7,2734.9,0.72559411]
[1764614807274,0.0997041,2735.7,2734.5,0.72559411]
[1764614807457,0.0997041,2735.4,2734.6,0.585]
[1764614807655,4.01905855,2735.8,2734.7,7.31341646]
[1764614807977,0.36380911,2735.5,2734.7,7.89841646]
[1764614809769,0.36380911,2735.5,2734.7,7.31341646]
[1764614809970,3.65577246,2735.4,2734.7,0.585]
[1764614810175,0.36380911,2735.2,2734.7,0.585]
[1764614810371,4.01958157,2735.4,2734.7,0.585]
[1764614810680,0.36380911,2735.3,2734.7,0.585]
[1764614810895,0.36380911,2735.3,2734.3,9.66401765]
[1764614811178,7.31154492,2735.4,2733.9,0.585]
[1764614811179,0.36380911,2734.6,2733.9,0.585]
[1764614811380,0.0997041,2735.0,2733.9,10.24901765]
[1764614811581,0.0997041,2735.0,2733.9,10.28594034]
[1764614811746,4.02038363,2734.8,2734.0,7.31528894]
[1764614812150,0.36380911,2734.8,2734.0,7.31528894]
[1764614812349,4.0211853,2735.7,2734.5,0.72559411]
[1764614812561,0.0997041,2735.5,2734.6,0.585]
[1764614813489,10.96812857,2735.7,2734.7,0.585]
[1764614813778,0.0997041,2735.2,2734.7,0.585]
[1764614813960,3.65617344,2735.1,2734.7,0.585]
[1764614814169,0.0997041,2735.2,2734.7,4.24170587]
[1764614814170,3.6560925,2735.2,2734.7,4.24170587]
[1764614814483,7.312185,2735.2,2734.4,0.585]
[1764614814652,0.36380911,2735.1,2734.4,0.585]
[1764614815478,0.36380911,2735.1,2734.4,1.31059411]
[1764614815787,3.85535415,2735.3,2734.4,1.31059411]
[1764614815965,3.6555587,2735.6,2734.5,7.31395136]
[1764614816284,0.36380911,2735.5,2734.5,7.6768469]
[1764614816451,3.6555587,2735.6,2734.5,7.6768469]
[1764614816452,3.65560631,2735.6,2734.5,10.97092704]
[1764614816653,3.75531041,2735.6,2734.6,1.08848965]
[1764614818581,0.0997041,2735.6,2734.8,0.72559411]
[1764614818783,3.75520939,2735.6,2734.8,0.72559411]
[1764614818974,0.36380911,2735.4,2734.8,0.72559411]
[1764614819171,0.0997041,2735.6,2734.8,1.67348965]
[1764614819697,0.0997041,2735.6,2734.8,1.31059411]
[1764614820561,0.002,2735.7,2735.1,0.405504]
[1764614820762,0.002,2735.7,2735.2,0.585]
[1764614822058,0.002,2735.7,2735.6,0.72559411]
[1764614822257,0.002,2735.7,2735.4,0.585]
[1764614822868,0.002,2735.7,2735.6,0.72559411]
[1764614824793,0.002,2735.7,2735.6,4.3810993]
[1764614827216,0.002,2735.7,2735.6,14.55041202]
[1764614828282,3.61329034,2737.0,2735.7,0.405504]
[1764614828480,0.36380911,2737.0,2735.9,0.36289554]
[1764614828669,4.01744913,2737.0,2736.0,0.36289554]
[1764614828872,0.36380911,2737.0,2736.0,0.36289554]
[1764614829307,0.36380911,2737.3,2736.3,0.36289554]
[1764614829512,0.36380911,2737.3,2736.4,0.585]
[1764614829667,0.19115828,2739.6,2736.4,0.585]
[1764614829668,3.65216756,2738.1,2736.4,0.585]
[1764614829886,0.0997041,2737.5,2736.4,0.585]
[1764614830183,0.36380911,2737.8,2736.4,0.94789554]
[1764614830618,0.002,2736.7,2736.4,0.94789554]
[1764614830824,0.002,2736.7,2736.4,0.585]
[1764614831423,0.002,2736.7,2736.6,0.72559411]
[1764614831626,0.002,2736.7,2736.6,10.89490683]
[1764614832826,0.002,2736.7,2736.6,11.38011576]
[1764614832981,0.002,2737.0,2736.7,0.405504]
[1764614833340,0.05,2739.4,2737.1,10.96050564]
[1764614833341,0.0997041,2738.6,2737.1,10.96050564]
[1764614833523,10.9513032,2739.4,2737.1,10.96050564]
[1764614833524,10.9513032,2739.4,2737.8,0.72559411]
[1764614833830,0.72559411,2739.3,2737.8,0.72559411]
[1764614834129,0.36380911,2738.7,2737.8,0.72559411]
[1764614834484,0.72559411,2739.3,2737.0,0.72559411]
[1764614834708,0.36380911,2737.8,2737.0,0.72559411]
[1764614834893,0.36380911,2737.8,2736.5,3.65430294]
[1764614835084,0.0997041,2737.4,2736.7,0.586]
[1764614835286,0.0997041,2737.4,2736.9,0.72559411]
[1764614835523,0.36380911,2737.5,2736.8,3.65390236]
[1764614836220,1.13109811,2738.0,2736.4,9.66401765]
[1764614836425,0.0997041,2737.3,2736.5,0.586]
[1764614837136,0.0997041,2737.3,2736.5,1.31159411]
[1764614837356,1.50113189,2738.0,2736.4,16.97289061]
[1764614837357,0.0997041,2737.2,2736.4,9.66401765]
[1764614837565,0.405504,2737.7,2736.5,0.72559411]
[1764614837739,0.36380911,2737.2,2736.2,7.3094072]
[1764614837940,0.36380911,2737.4,2736.3,0.72559411]
[1764614838248,0.36380911,2737.1,2736.3,0.72559411]
[1764614839847,0.36380911,2737.1,2736.5,0.72559411]
[1764614839848,4.0173494,2737.1,2736.5,0.72559411]
[1764614840822,3.65343928,2737.2,2736.5,0.72559411]
[1764614841228,7.67068767,2737.2,2736.5,0.72559411]
[1764614841546,3.65343928,2737.2,2736.5,0.72559411]
[1764614841746,3.75314338,2737.2,2736.6,3.6541694]
[1764614842969,3.65243434,2737.9,2736.6,3.6541694]
[1764614842970,1.09562789,2738.0,2736.7,0.72559411]
[1764614843255,3.65243434,2737.9,2737.1,0.72559411]
[1764614843458,9.49205765,2739.1,2737.5,0.72559411]
[1764614843459,0.05,2739.1,2737.5,0.72559411]
[1764614843660,3.85114031,2738.5,2737.7,0.72559411]
[1764614843847,7.50287241,2738.5,2737.7,0.72559411]
[1764614844057,0.36380911,2738.1,2737.0,4.37922947]
[1764614844269,0.36380911,2737.8,2737.1,0.586]
[1764614844828,0.36380911,2737.7,2737.0,0.586]
[1764614845628,3.65283459,2737.6,2737.0,0.586]
[1764614845829,4.41977398,2737.6,2737.0,0.586]
[1764614846030,0.76693939,2737.6,2737.0,0.586]
[1764614846251,4.01658137,2737.7,2737.0,0.586]
[1764614846559,7.66935363,2737.7,2737.1,0.72559411]
[1764614846957,7.66935363,2737.7,2736.9,4.37926348]
[1764614847256,7.66935363,2737.7,2736.9,8.03303234]
[1764614847462,7.66935363,2737.7,2736.9,4.37926348]
[1764614847663,8.43628899,2737.7,2736.9,4.37926348]
[1764614848051,4.78351673,2737.7,2736.9,8.03303234]
[1764614848361,4.78551673,2737.7,2736.9,8.03303234]
[1764614848662,8.43828899,2737.7,2736.9,8.03303234]
[1764614849357,0.36580911,2737.7,2736.9,8.03303234]
[1764614849779,4.01851718,2737.7,2736.9,8.03303234]
[1764614849967,0.002,2737.7,2737.3,0.72559411]
[1764614850151,0.002,2737.7,2737.3,1.67448965]
[1764614850370,0.002,2737.7,2737.6,10.21765176]
[1764614852165,0.002,2737.7,2737.6,13.87048635]
[1764614852761,0.002,2737.7,2737.6,0.72559411]
[1764614852950,0.002,2737.7,2737.6,4.3784287]
[1764614853958,0.002,2737.7,2737.6,4.74132424]
[1764614854777,0.002,2737.7,2737.6,4.3784287]
[1764614855138,0.002,2737.7,2737.6,14.23338189]
[1764614855933,0.002,2738.0,2737.7,1.13109811]
[1764614856156,0.002,2738.0,2737.9,3.75222541]
[1764614856384,0.002,2738.0,2737.9,5.46832352]
[1764614857690,0.002,2738.3,2738.2,0.36289554]
[1764614857894,0.0997041,2739.8,2738.3,0.72559411]
[1764614858058,0.0997041,2739.7,2738.7,0.72559411]
[1764614858258,3.74980596,2739.7,2738.7,1.31059411]
[1764614858972,0.0997041,2739.7,2738.7,1.31059411]
[1764614859169,0.36380911,2739.8,2738.9,0.36289554]
[1764614859372,3.64978756,2739.9,2738.8,0.36289554]
[1764614859664,0.83909456,2739.9,2738.8,0.36289554]
[1764614859869,4.01551428,2740.0,2739.1,0.72559411]
[1764614859870,0.002,2740.0,2739.1,0.72559411]
[1764614860069,0.002,2740.0,2739.2,3.65062749]
[1764614860260,0.0997041,2739.7,2739.2,3.65062749]
[1764614860452,0.36380911,2739.9,2739.2,3.65062749]
[1764614860657,0.1017041,2740.0,2739.2,3.65062749]
[1764614860862,0.36380911,2739.9,2739.2,3.65062749]
[1764614861084,0.002,2740.0,2739.0,0.72559411]
[1764614861289,0.36380911,2739.9,2739.0,0.72559411]
[1764614861494,0.36580911,2740.0,2739.0,0.72559411]
[1764614861658,0.002,2740.0,2739.0,0.72559411]
[1764614861860,0.36380911,2739.9,2739.0,0.72559411]
[1764614862179,3.64990145,2739.8,2739.1,3.65083421]
[1764614862375,3.64990145,2739.8,2739.1,7.30166842]
[1764614862581,0.002,2740.0,2739.2,1.31059411]
[1764614863086,3.65169163,2740.0,2739.2,1.31059411]
[1764614863683,0.002,2740.0,2739.2,1.31059411]
[1764614864191,0.002,2740.0,2739.4,0.72559411]
[1764614865163,0.002,2740.0,2739.5,0.585]
[1764614865687,3.65088572,2740.6,2739.7,0.36289554]
[1764614865896,7.87232124,2740.6,2739.6,0.29937321]
[1764614866082,0.36380911,2740.5,2739.5,0.68479107]
[1764614866282,0.36380911,2740.5,2739.6,7.3003358]
[1764614866283,3.64910232,2740.4,2739.6,7.3003358]
[1764614866479,3.64910232,2740.4,2739.7,0.585]
[1764614867203,0.002,2740.6,2739.8,9.49205765]
[1764614867571,0.405504,2740.5,2739.2,0.09979107]
[1764614867892,0.36380911,2740.3,2739.2,0.585]
[1764614868193,7.2987373,2740.2,2739.3,0.72559411]
[1764614868396,0.36380911,2739.8,2739.2,0.72559411]
[1764614868772,10.94695578,2740.5,2739.2,0.72559411]
[1764614868980,0.0997041,2739.8,2739.2,0.72559411]
[1764614869181,3.64896916,2740.5,2739.3,0.585]
[1764614869376,0.0997041,2740.4,2739.4,0.72559411]
[1764614869698,0.51127825,2740.4,2739.4,1.08848965]
[1764614869896,0.41157415,2740.4,2739.5,0.585]
[1764614870265,0.36380911,2740.2,2739.6,0.72559411]
[1764614870910,3.64923548,2740.3,2739.6,0.72559411]
[1764614871417,0.36380911,2740.2,2739.6,0.72559411]
[1764614871926,0.002,2740.6,2740.1,0.72559411]
[1764614872083,0.002,2740.6,2740.1,1.08848965]
[1764614872269,0.002,2740.6,2740.2,7.2987373]
[1764614872667,0.002,2740.6,2740.4,9.49205765]
[1764614872886,0.002,2740.6,2740.5,1.31059411]
[1764614874092,0.002,2740.6,2740.5,2.07899365]
[1764614874402,0.002,2740.6,2740.5,5.72796281]
[1764614874863,0.002,2740.6,2740.5,5.14296281]
[1764614874983,0.002,2740.6,2740.5,5.72796281]
[1764614875969,0.002,2740.6,2740.5,0.72559411]
[1764614876169,0.002,2740.6,2740.5,4.95956327]
[1764614876473,0.002,2740.6,2740.5,0.72559411]
[1764614876872,0.002,2740.6,2740.1,3.64950184]
[1764614877174,0.002,2740.6,2740.1,0.585]
[1764614877569,0.002,2740.6,2739.4,13.14242504]
[1764614877770,0.19940821,2740.2,2739.4,7.88580179]
[1764614878074,0.36380911,2740.4,2739.4,7.88580179]
[1764614878293,0.36380911,2740.4,2739.5,0.72559411]
[1764614878294,4.01298894,2740.4,2739.5,0.72559411]
[1764614878519,0.002,2740.6,2739.7,9.49205765]
[1764614878708,3.65085068,2740.6,2739.8,0.585]
[1764614878908,7.29970136,2740.6,2739.8,0.585]
[1764614880599,3.65087141,2740.6,2739.6,1.31059411]
[1764614880809,0.002,2740.6,2740.1,9.49205765]
[1764614880996,0.002,2740.6,2740.2,0.19958214]
[1764614881301,0.002,2740.6,2739.9,0.92517625]
[1764614881512,7.29978678,2740.6,2739.6,0.585]
[1764614881822,0.0997041,2740.2,2739.6,0.585]
[1764614882188,0.36380911,2740.3,2739.6,0.585]
[1764614882418,0.002,2740.6,2739.8,0.72559411]
[1764614882611,0.36380911,2740.3,2739.7,0.72559411]
[1764614882915,3.64896916,2740.5,2739.7,0.72559411]
[1764614883216,0.36380911,2740.3,2739.7,0.72559411]
[1764614883522,0.36380911,2740.3,2739.7,1.31059411]
[1764614884319,0.36380911,2740.4,2739.9,0.72559411]
[1764614884507,0.002,2740.6,2739.7,0.72559411]
[1764614884508,0.36380911,2740.3,2739.7,0.72559411]
[1764614884822,0.19940821,2740.2,2739.7,0.72559411]
[1764614885705,0.19940821,2740.2,2739.9,0.72559411]
[1764614886518,0.19940821,2740.2,2739.6,3.65012418]
[1764614886519,0.36380911,2740.2,2739.6,3.65012418]
[1764614888123,4.01318401,2740.2,2739.5,1.31159411]
[1764614888819,0.36336527,2740.2,2739.5,1.31159411]
[1764614889123,4.01276053,2740.2,2739.5,1.31159411]
[1764614889303,0.36336527,2740.2,2739.5,1.31159411]
[1764614889624,4.01273756,2740.2,2739.5,1.31159411]
[1764614890323,3.65088845,2740.6,2739.6,16.79239345]
[1764614890622,7.2997769,2740.6,2739.6,16.79239345]
[1764614890824,7.2997769,2740.6,2739.6,3.6501679]
[1764614891124,0.405504,2740.4,2739.5,0.001]
[1764614891296,0.36336527,2739.6,2739.5,0.001]
[1764614892627,4.01353317,2739.6,2739.5,0.001]
[1764614892831,0.36336527,2739.6,2739.5,0.001]
[1764614893003,3.64950184,2740.1,2739.5,0.001]
[1764614893325,7.72121789,2740.1,2739.5,0.001]
[1764614893644,0.0997041,2739.7,2739.5,0.001]
[1764614893827,7.72121789,2740.1,2739.5,0.001]
[1764614893828,11.37071973,2740.1,2739.5,0.001]
[1764614894019,0.36336527,2739.6,2739.5,0.001]
[1764614894625,0.36336527,2739.7,2739.5,0.001]
[1764614895827,3.64981363,2739.9,2739.5,0.001]
[1764614895828,0.36336527,2739.8,2739.5,0.001]
[1764614896916,3.64976994,2739.9,2739.5,0.001]
[1764614897235,0.36336527,2739.9,2739.5,0.001]
[1764614897537,0.0997041,2739.6,2739.5,0.001]
[1764614897719,0.0997041,2739.7,2739.5,0.001]
[1764614898524,7.29860316,2740.3,2739.5,3.65130114]
[1764614898836,0.36336527,2739.9,2739.5,7.30160228]
[1764614899637,0.36336527,2739.9,2739.5,3.65130114]
[1764614900319,0.0997041,2740.2,2739.5,7.30160228]
[1764614900843,0.0997041,2740.2,2739.5,0.001]
[1764614901940,0.0997041,2740.4,2739.5,0.001]
[1764614902309,7.30016746,2740.5,2739.5,0.001]
[1764614902508,0.36336527,2740.0,2739.5,0.001]
[1764614902742,0.405504,2740.1,2739.5,0.001]
[1764614902935,0.0997041,2739.6,2739.5,0.001]
[1764614903413,0.5052081,2739.6,2739.5,0.001]
[1764614904123,0.0997041,2739.6,2739.5,0.001]
[1764614905016,4.88097011,2739.6,2739.5,0.001]
[1764614905343,5.73407227,2739.6,2739.5,0.001]
[1764614905512,11.80624927,2739.6,2739.5,0.001]
[1764614906523,17.77457027,2739.6,2739.5,0.001]
[1764614906730,14.70506327,2739.6,2739.5,0.001]
[1764614907543,5.73407227,2739.6,2739.5,0.001]
[1764614907848,7.76831327,2739.6,2739.5,0.001]
[1764614908414,18.99056727,2739.6,2739.5,0.001]
[1764614908618,13.75554527,2739.6,2739.5,0.001]
[1764614909032,8.75554527,2739.6,2739.5,0.001]
[1764614909540,12.24820427,2739.6,2739.5,0.001]
[1764614909741,9.32839827,2739.6,2739.5,0.001]
[1764614910436,5.43948833,2739.6,2739.5,0.001]
[1764614910637,0.572853,2739.6,2739.5,0.001]
[1764614910847,4.01353317,2739.6,2739.5,0.001]
[1764614911232,0.36336527,2740.0,2739.5,0.001]
[1764614911545,0.36336527,2739.7,2739.5,0.001]
[1764614911747,3.6501679,2739.6,2739.5,0.001]
[1764614912467,4.01345852,2739.7,2739.5,0.001]
[1764614913229,0.36336527,2739.7,2739.5,0.001]
[1764614914048,4.0134113,2739.7,2739.5,0.001]
[1764614914252,4.41475243,2739.7,2739.5,0.001]
[1764614914424,7.66345733,2739.7,2739.5,0.001]
[1764614915148,4.0134113,2739.7,2739.5,0.001]
[1764614915929,7.66345733,2739.7,2739.5,0.001]
[1764614916257,4.0134113,2739.7,2739.5,0.001]
[1764614916754,7.66345733,2739.7,2739.5,0.001]
[1764614916949,4.0134113,2739.7,2739.5,0.001]
[1764614917256,0.36336527,2739.7,2739.5,0.001]
[1764614918626,4.01340228,2739.7,2739.5,0.001]
[1764614919454,0.36336527,2739.7,2739.5,0.001]
[1764614920453,4.0134226,2739.7,2739.5,0.001]
[1764614920950,3.6499585,2739.8,2739.5,0.001]
[1764614921656,0.36336527,2739.7,2739.5,0.001]
[1764614923531,0.36336527,2739.6,2739.5,0.001]
[1764614925152,0.0997041,2739.7,2739.5,0.001]
[1764614925958,3.64988143,2739.9,2739.5,0.001]
[1764614926161,4.0132467,2739.9,2739.5,0.001]
[1764614926351,0.36336527,2739.8,2739.5,0.001]
[1764614928162,4.01328066,2739.8,2739.5,0.001]
[1764614931465,0.36336527,2739.7,2739.5,0.001]
[1764614931932,0.36336527,2739.6,2739.5,0.001]
[1764614932133,0.0997041,2739.6,2739.5,0.001]
[1764614933767,0.72559411,2739.9,2739.5,0.001]
[1764614933985,0.36336527,2739.6,2739.5,0.001]
[1764614934340,4.01353317,2739.6,2739.5,0.001]
[1764614934968,4.41903717,2739.6,2739.5,0.001]
[1764614935271,4.88097011,2739.6,2739.5,0.001]
[1764614935966,17.99572511,2739.6,2739.5,0.001]
[1764614936171,19.65217959,2739.6,2739.5,0.001]
[1764614936365,19.65217959,2739.6,2739.0,1e-08]
[1764614936366,27.85437446,2739.1,2739.0,1e-08]
[1764614936866,25.84432946,2739.1,2739.0,1e-08]
[1764614937072,25.84432946,2739.1,2737.3,0.001]
[1764614937074,0.405504,2738.2,2737.3,0.001]
[1764614937271,0.455504,2738.0,2737.3,0.001]
[1764614937569,0.81886927,2738.0,2737.3,0.001]
[1764614938844,5.19676432,2738.0,2737.3,0.001]
[1764614939063,6.08165825,2738.0,2737.3,0.001]
[1764614939267,5.66829298,2738.0,2737.3,0.001]
[1764614939484,5.76799708,2738.0,2737.3,0.001]
[1764614939648,4.63689897,2738.0,2737.3,0.001]
[1764614939857,3.75200504,2738.0,2737.3,0.001]
[1764614941378,0.36336527,2738.1,2737.3,0.001]
[1764614942682,0.36336527,2738.0,2737.3,0.001]
[1764614943952,3.65203418,2738.2,2737.3,0.001]
[1764614944655,0.36327542,2738.1,2737.3,0.001]
[1764614944856,4.01546558,2738.1,2737.3,0.001]
[1764614945085,0.0997041,2738.0,2737.3,0.001]
[1764614945450,3.65212067,2738.2,2737.3,0.001]
[1764614945655,3.6516341,2738.5,2737.3,0.001]
[1764614945867,0.36327542,2738.4,2737.3,0.001]
[1764614946584,0.36327542,2738.3,2737.3,0.001]
[1764614946881,3.75124803,2738.6,2737.4,0.72559411]
[1764614947190,0.36327542,2738.5,2737.4,0.72559411]
[1764614948558,0.36327542,2738.2,2737.4,0.72559411]
[1764614949861,0.36327542,2738.2,2737.6,0.72659411]
[1764614951765,0.36327542,2738.2,2737.7,3.65270117]
[1764614952258,0.36327542,2738.2,2737.7,7.30540234]
[1764614953182,0.36327542,2738.2,2737.6,0.001]
[1764614953183,0.40151084,2738.2,2737.6,0.001]
[1764614953384,0.36327542,2738.0,2737.6,0.001]
[1764614953591,0.405504,2738.0,2737.6,0.001]
[1764614953796,4.05780494,2738.0,2737.6,0.001]
[1764614953971,4.78339905,2738.0,2737.6,0.001]
[1764614954166,5.14667447,2738.0,2737.6,0.001]
[1764614954367,6.67656044,2738.0,2737.6,0.001]
[1764614954795,23.29496844,2738.0,2737.6,0.001]
[1764614955297,20.47488444,2738.0,2737.6,0.001]
[1764614955486,21.04810641,2738.0,2737.6,0.001]
[1764614955868,27.92427841,2738.0,2737.6,0.001]
[1764614956082,20.72265341,2738.0,2737.6,0.001]
[1764614956285,19.80165641,2738.0,2737.6,0.001]
[1764614956598,19.26262441,2738.0,2737.6,0.001]
[1764614956800,13.69978241,2738.0,2737.6,0.001]
[1764614956988,20.34903141,2738.0,2737.6,0.001]
[1764614957994,24.86045641,2738.0,2737.6,0.001]
[1764614958301,25.43369612,2738.0,2737.6,0.001]
[1764614958482,24.86045641,2738.0,2737.6,0.001]
[1764614958877,23.57342941,2738.0,2737.6,0.001]
[1764614959380,13.69978241,2738.0,2737.6,0.001]
[1764614959590,13.29427841,2738.0,2737.6,0.001]
[1764614960068,15.45363141,2738.0,2737.6,0.001]
[1764614960270,0.0997041,2738.0,2737.6,0.001]
[1764614960470,3.65377942,2738.4,2737.6,0.001]
[1764614960875,0.36327542,2738.3,2737.6,0.001]
[1764614962189,0.36327542,2738.0,2737.6,0.001]
[1764614964713,0.36327542,2738.2,2737.6,0.001]
[1764614965978,3.75353581,2738.4,2737.6,0.001]
[1764614966284,3.65383171,2738.4,2737.6,0.001]
[1764614966511,0.36327542,2738.2,2737.6,0.001]
[1764614968614,4.01533856,2738.2,2737.6,0.001]
[1764614971632,0.36327542,2738.2,2737.6,0.001]
[1764614972296,4.41729173,2738.2,2737.6,0.001]
[1764614973106,0.405504,2738.1,2737.6,0.001]
[1764614973431,4.25721315,2738.0,2737.6,0.001]
[1764614974132,5.14667447,2738.0,2737.6,0.001]
[1764614974836,5.7198058,2738.0,2737.6,0.001]
[1764614975003,7.06240647,2738.0,2737.6,0.001]
[1764614976830,6.79883515,2738.0,2737.6,0.001]
[1764614984146,13.24883515,2738.0,2737.6,0.001]
[1764614988944,12.67570382,2738.0,2737.6,0.001]
[1764614989134,12.67770382,2738.0,2737.6,0.001]
[1764614989640,6.22770382,2738.0,2737.6,0.001]
[1764614991941,6.12799972,2738.0,2737.6,0.001]
[1764614992150,7.06447894,2738.0,2737.6,0.001]
[1764614993137,5.93338083,2738.0,2737.6,0.001]
[1764614993338,5.72187827,2738.0,2737.6,0.001]
[1764615001059,0.5752038,2738.0,2737.6,0.001]
[1764615001269,0.002,2738.0,2737.6,0.001]
[1764615001430,0.36527542,2738.0,2737.6,0.001]
[1764615001756,4.42308036,2738.0,2737.6,0.001]
[1764615001955,5.95619943,2738.0,2737.6,0.001]
[1764615003059,6.00619943,2738.0,2737.6,0.001]
[1764615004525,6.57935559,2738.0,2737.6,0.001]
[1764615004731,6.52935559,2738.0,2737.6,0.001]
[1764615005056,5.95619943,2738.0,2737.6,0.001]
[1764615006562,4.74317047,2738.0,2737.6,0.001]
[1764615007732,5.14867447,2738.0,2737.6,0.001]
[1764615011736,11.59867447,2738.0,2737.6,0.001]
[1764615014850,11.19317047,2738.0,2737.6,0.001]
[1764615015058,0.002,2738.0,2737.6,0.001]
[1764615016461,0.36527542,2738.0,2737.6,0.001]
[1764615017357,0.002,2738.0,2737.6,0.001]
[1764615024171,0.002,2738.0,2737.9,0.10079107]
[1764615024371,0.002,2738.0,2737.9,0.001]